bitfinex-derivatives/quotes_BTCF0:USTF0_20241203
["timestamp","ask_amount","ask_price","bid_price","bid_amount"]
[1733192284808,0.5628,95910.0,95909.0,0.3119]
[1733192285020,0.5628,95910.0,95909.0,0.001]
[1733192285909,0.71988304,95910.0,95905.0,0.0026]
[1733192286114,0.71988304,95910.0,95895.0,0.062627]
[1733192286115,0.052124,95900.0,95895.0,0.0105]
[1733192286415,0.3608,95896.0,95883.0,0.0105]
[1733192286616,0.052129,95891.0,95882.0,0.052134]
[1733192286811,0.052129,95891.0,95879.0,0.02087125]
[1733192286812,0.031,95890.0,95879.0,0.02087125]
[1733192287012,0.031,95890.0,95884.0,0.052133]
[1733192287218,0.031,95890.0,95879.0,0.15907125]
[1733192287515,0.031,95890.0,95886.0,0.412932]
[1733192287719,0.3608,95896.0,95886.0,0.36136]
[1733192288021,0.499,95906.0,95886.0,0.36136]
[1733192288022,0.031,95899.0,95895.0,0.412927]
[1733192288520,0.15603753,95898.0,95895.0,0.412927]
[1733192288721,0.20816253,95898.0,95895.0,0.412927]
[1733192288911,0.15603753,95898.0,95897.0,0.052126]
[1733192290518,0.15603753,95898.0,95897.0,0.053126]
[1733192290915,0.0333,95909.0,95897.0,0.053126]
[1733192290916,0.15655841,95903.0,95902.0,0.052123]
[1733192291112,0.50056001,95910.0,95909.0,0.052119]
[1733192291311,0.5,95910.0,95909.0,0.412919]
[1733192291623,0.65592205,95910.0,95909.0,0.412919]
[1733192292118,0.5,95910.0,95909.0,0.412919]
[1733192293520,0.5,95910.0,95909.0,0.413919]
[1733192299929,0.552119,95910.0,95909.0,0.413919]
[1733192300615,0.552119,95910.0,95909.0,0.3618]
[1733192301020,0.70828066,95910.0,95909.0,0.001]
[1733192304620,0.65616166,95910.0,95909.0,0.05312]
[1733192305120,0.70828066,95910.0,95909.0,0.001]
[1733192309128,0.72754639,95910.0,95909.0,0.001]
[1733192309323,0.70828066,95910.0,95909.0,0.001]
[1733192309532,0.65616166,95910.0,95909.0,0.05312]
[1733192310827,0.65616166,95910.0,95909.0,0.001]
[1733192312223,0.70828066,95910.0,95909.0,0.001]
[1733192312626,0.84612066,95910.0,95909.0,0.001]
[1733192312935,0.84612066,95910.0,95895.0,0.0105]
[1733192312936,0.052125,95899.0,95895.0,0.0105]
[1733192313135,0.052126,95898.0,95892.0,0.052128]
[1733192313336,0.3608,95904.0,95890.0,0.3608]
[1733192313525,0.3608,95904.0,95895.0,0.052127]
[1733192313833,0.1555236,95903.0,95891.0,0.052129]
[1733192314038,0.1555236,95903.0,95896.0,0.052127]
[1733192314234,0.2076466,95903.0,95896.0,0.052127]
[1733192314434,0.052124,95902.0,95896.0,0.052127]
[1733192314840,0.15650499,95901.0,95896.0,0.052127]
[1733192316127,0.20862899,95901.0,95896.0,0.052127]
[1733192316443,0.052124,95901.0,95896.0,0.052127]
[1733192316643,0.053124,95901.0,95896.0,0.052127]
[1733192316838,0.15730662,95900.0,95896.0,0.052127]
[1733192317538,0.20943162,95900.0,95896.0,0.052127]
[1733192317936,0.052126,95899.0,95894.0,0.3608]
[1733192318134,0.15730662,95900.0,95894.0,0.3608]
[1733192318135,0.052128,95895.0,95894.0,0.3608]
[1733192318533,0.2093023,95895.0,95894.0,0.3608]
[1733192321955,0.1571743,95895.0,95894.0,0.3608]
[1733192322162,0.60517563,95910.0,95894.0,0.3608]
[1733192322163,0.13784,95907.0,95894.0,0.3608]
[1733192322350,0.1556906,95900.0,95897.0,0.052128]
[1733192322553,0.1556906,95906.0,95894.0,0.3608]
[1733192322754,0.052128,95898.0,95894.0,0.3608]
[1733192323256,0.052129,95896.0,95894.0,0.3608]
[1733192324458,0.052129,95895.0,95894.0,0.3608]
[1733192328860,0.052132,95890.0,95889.0,0.00156407]
[1733192329348,0.20808842,95890.0,95889.0,0.00156407]
[1733192330461,0.052139,95878.0,95877.0,0.0131]
[1733192330661,0.052139,95878.0,95863.0,0.13728]
[1733192330662,0.05214,95876.0,95863.0,0.14778]
[1733192330855,0.05214,95876.0,95869.0,0.3608]
[1733192331056,0.20756906,95876.0,95869.0,0.3608]
[1733192331458,0.20756906,95876.0,95863.0,0.0105]
[1733192332261,0.20856906,95876.0,95863.0,0.0105]
[1733192333559,0.23876906,95876.0,95863.0,0.0105]
[1733192334860,0.23876906,95876.0,95867.0,0.052145]
[1733192335261,0.23876906,95876.0,95863.0,0.0105]
[1733192338567,0.23876906,95876.0,95863.0,0.062647]
[1733192339076,0.23876906,95876.0,95863.0,0.0105]
[1733192339370,0.20856906,95876.0,95865.0,0.052146]
[1733192340270,0.20856906,95876.0,95868.0,0.412944]
[1733192340572,0.20856906,95876.0,95868.0,0.413504]
[1733192340868,0.20856906,95876.0,95868.0,0.052704]
[1733192341074,0.20856906,95876.0,95863.0,0.0105]
[1733192341465,0.34588906,95876.0,95863.0,0.0105]
[1733192343168,0.56720739,95876.0,95863.0,0.0105]
[1733192343373,0.052148,95861.0,95855.0,0.0105]
[1733192343675,0.052148,95861.0,95853.0,0.05371693]
[1733192343676,0.15580381,95860.0,95853.0,0.05371693]
[1733192343865,0.15580381,95860.0,95853.0,0.00156493]
[1733192344071,0.15580381,95860.0,95858.0,0.052149]
[1733192344371,8.213e-05,95859.0,95858.0,0.052149]
[1733192344766,0.15616295,95859.0,95858.0,0.052149]
[1733192345666,0.00508213,95859.0,95858.0,0.053149]
[1733192346574,0.00508213,95859.0,95858.0,0.413949]
[1733192347477,0.00808213,95859.0,95858.0,0.413949]
[1733192348178,0.00308213,95859.0,95858.0,0.412949]
[1733192348380,0.00808213,95859.0,95858.0,0.412949]
[1733192349871,0.00708213,95859.0,95858.0,0.412949]
[1733192350184,0.0026,95870.0,95869.0,0.052144]
[1733192350387,0.052141,95876.0,95874.0,0.052142]
[1733192350576,0.052141,95876.0,95875.0,0.0301]
[1733192351479,0.057141,95876.0,95875.0,0.0301]
[1733192351976,0.057141,95876.0,95875.0,0.001]
[1733192352178,0.34882998,95876.0,95875.0,0.001]
[1733192352373,0.34882998,95876.0,95855.0,0.1358]
[1733192352374,0.052147,95863.0,95855.0,0.1358]
[1733192352580,0.052152,95855.0,95852.0,0.01965261]
[1733192352881,0.052152,95855.0,95848.0,0.3608]
[1733192353383,0.052152,95855.0,95850.0,0.052154]
[1733192354086,0.052152,95855.0,95848.0,0.3608]
[1733192354485,0.052152,95855.0,95848.0,0.412956]
[1733192354688,0.052152,95855.0,95849.0,0.052155]
[1733192355082,0.052152,95855.0,95848.0,0.3608]
[1733192355083,0.052152,95854.0,95845.0,0.052157]
[1733192355391,0.052152,95854.0,95841.0,0.0105]
[1733192355392,0.65389125,95854.0,95841.0,0.0105]
[1733192355591,0.10461562,95851.0,95838.0,0.413601]
[1733192355777,0.10461562,95851.0,95838.0,0.412961]
[1733192355979,0.052158,95844.0,95838.0,0.412961]
[1733192356376,0.052158,95843.0,95838.0,0.412961]
[1733192356582,0.05216,95840.0,95838.0,0.3608]
[1733192356785,0.05216,95840.0,95832.0,0.052164]
[1733192356987,0.052161,95839.0,95832.0,0.052164]
[1733192357286,0.052161,95839.0,95838.0,0.003]
[1733192357679,0.052161,95839.0,95838.0,0.008]
[1733192358987,0.052161,95839.0,95838.0,0.005]
[1733192360287,0.001,95839.0,95834.0,0.052163]
[1733192361194,0.052158,95843.0,95830.0,0.0313]
[1733192361490,0.052158,95843.0,95835.0,0.052162]
[1733192362484,0.49716001,95845.0,95835.0,0.052162]
[1733192362690,0.052159,95842.0,95835.0,0.052162]
[1733192364494,0.052159,95842.0,95835.0,0.053162]
[1733192364999,0.052161,95839.0,95835.0,0.053163]
[1733192365889,0.052161,95839.0,95835.0,0.001]
[1733192366090,0.49716001,95845.0,95837.0,0.052161]
[1733192366289,0.4966,95845.0,95837.0,0.052161]
[1733192366487,0.15687771,95844.0,95837.0,0.052161]
[1733192366694,0.15687771,95844.0,95835.0,0.001]
[1733192366890,0.0026,95851.0,95847.0,0.052156]
[1733192367197,0.052156,95849.0,95842.0,0.052159]
[1733192367384,0.36136001,95854.0,95842.0,0.052159]
[1733192367590,0.052155,95850.0,95842.0,0.052159]
[1733192367790,0.052155,95849.0,95842.0,0.052159]
[1733192368588,0.052156,95847.0,95842.0,0.052159]
[1733192369603,0.053154,95851.0,95843.0,0.052158]
[1733192369899,0.052154,95851.0,95843.0,0.052158]
[1733192370095,0.001,95847.0,95843.0,0.052158]
[1733192370591,0.002,95847.0,95843.0,0.052158]
[1733192370797,0.002,95847.0,95839.0,0.13584]
[1733192370992,0.001,95847.0,95839.0,0.13584]
[1733192371198,0.05216,95841.0,95839.0,0.13584]
[1733192371588,0.3608,95844.0,95835.0,0.01888568]
[1733192371795,0.052162,95837.0,95831.0,0.13584]
[1733192371995,0.052162,95837.0,95831.0,0.2068984]
[1733192372193,0.052162,95837.0,95832.0,0.052164]
[1733192372394,0.052159,95842.0,95833.0,0.052164]
[1733192372893,0.05216,95841.0,95833.0,0.052164]
[1733192373301,0.05216,95840.0,95833.0,0.052164]
[1733192374003,0.05216,95840.0,95833.0,0.054164]
[1733192374191,0.05216,95840.0,95833.0,0.055164]
[1733192375091,0.05216,95840.0,95836.0,0.052162]
[1733192375699,0.3608,95844.0,95837.0,0.052162]
[1733192376098,0.052159,95842.0,95837.0,0.052162]
[1733192376599,0.3608,95844.0,95840.0,0.05216]
[1733192376800,0.0641,95846.0,95838.0,0.3608]
[1733192376993,0.0641,95846.0,95841.0,0.052159]
[1733192377193,0.0641,95846.0,95838.0,0.3608]
[1733192377502,0.0641,95846.0,95842.0,0.052159]
[1733192379006,0.0651,95846.0,95842.0,0.052159]
[1733192379504,0.0661,95846.0,95843.0,0.052159]
[1733192380893,0.002,95846.0,95843.0,0.052159]
[1733192381802,0.052158,95845.0,95843.0,0.052159]
[1733192383000,0.053158,95845.0,95843.0,0.052159]
[1733192383303,0.053158,95845.0,95838.0,0.3608]
[1733192383304,0.052158,95841.0,95838.0,0.41296]
[1733192383500,0.15662316,95844.0,95838.0,0.41296]
[1733192383813,0.15584922,95840.0,95839.0,0.052159]
[1733192384012,0.15584922,95844.0,95838.0,0.3608]
[1733192384307,0.002,95845.0,95840.0,0.052158]
[1733192384508,0.15628213,95844.0,95840.0,0.052158]
[1733192384703,0.15628213,95844.0,95838.0,0.3608]
[1733192385002,0.15628213,95844.0,95843.0,0.052157]
[1733192385304,0.002,95845.0,95844.0,0.052156]
[1733192385699,0.001,95845.0,95844.0,0.052156]
[1733192386201,0.001,95844.0,95843.0,0.547558]
[1733192386407,0.001,95844.0,95843.0,0.546918]
[1733192387107,0.002,95845.0,95844.0,0.052157]
[1733192387403,0.001,95845.0,95844.0,0.052157]
[1733192389207,0.054157,95845.0,95844.0,0.052157]
[1733192389404,0.053157,95845.0,95844.0,0.052157]
[1733192389705,0.053157,95845.0,95844.0,0.186077]
[1733192390210,0.054157,95845.0,95844.0,0.186077]
[1733192390607,0.054157,95845.0,95844.0,0.13392]
[1733192391408,0.054157,95845.0,95844.0,0.186077]
[1733192392705,0.002,95845.0,95844.0,0.186077]
[1733192395008,0.002,95845.0,95844.0,0.13392]
[1733192396907,0.002,95845.0,95843.0,0.3608]
[1733192397206,0.054159,95845.0,95843.0,0.3608]
[1733192399005,0.053159,95845.0,95843.0,0.3608]
[1733192399302,0.002,95845.0,95841.0,0.13392]
[1733192399507,0.052161,95842.0,95838.0,0.3608]
[1733192399712,0.052162,95841.0,95838.0,0.3608]
[1733192400112,0.3628,95845.0,95830.0,0.0105]
[1733192400304,0.3628,95845.0,95829.0,0.3608]
[1733192400305,0.052167,95830.0,95829.0,0.3608]
[1733192400511,0.052167,95830.0,95821.0,0.3608]
[1733192400814,0.0617,95829.0,95816.0,0.0105]
[1733192402015,0.0617,95829.0,95828.0,0.00211739]
[1733192402218,0.08146647,95829.0,95828.0,0.00211739]
[1733192403718,0.08146647,95829.0,95828.0,0.00711739]
[1733192403917,0.01976647,95829.0,95828.0,0.00711739]
[1733192404220,0.3608,95836.0,95828.0,0.00711739]
[1733192404424,0.3608,95836.0,95830.0,0.052167]
[1733192404616,0.2089333,95835.0,95828.0,0.00711739]
[1733192404808,0.052168,95829.0,95828.0,0.00711739]
[1733192405813,0.052168,95829.0,95828.0,0.00611739]
[1733192407219,0.052168,95829.0,95828.0,0.00411739]
[1733192407410,0.052168,95829.0,95828.0,0.00611739]
[1733192411311,0.13396,95834.0,95828.0,0.00611739]
[1733192411516,0.052168,95830.0,95828.0,0.00611739]
[1733192412211,0.052168,95830.0,95828.0,0.00411739]
[1733192412417,0.052168,95830.0,95828.0,0.00211739]
[1733192412617,0.052168,95830.0,95828.0,0.00611739]
[1733192415622,0.38056567,95836.0,95828.0,0.05828539]
[1733192415825,0.052166,95832.0,95828.0,0.05828539]
[1733192416933,0.00383726,96903.0,95829.0,0.13488]
[1733192416934,0.13488,95850.0,95829.0,0.13488]
[1733192417121,0.05216,95844.0,95830.0,0.10461562]
[1733192417426,0.0026,95846.0,95845.0,0.052159]
[1733192417625,0.13488,95850.0,95849.0,0.052157]
[1733192417825,0.13488,95850.0,95838.0,0.3608]
[1733192418016,0.2082636,95849.0,95844.0,0.052159]
[1733192418216,0.052157,95849.0,95844.0,0.052159]
[1733192418420,0.1561066,95848.0,95838.0,0.3608]
[1733192418622,0.002,95846.0,95845.0,0.052159]
[1733192419637,0.005,95846.0,95845.0,0.052159]
[1733192420224,0.002,95849.0,95843.0,0.3608]
[1733192420529,0.002,95849.0,95848.0,0.052157]
[1733192420726,0.002,95849.0,95848.0,0.187037]
[1733192420933,0.0026,95857.0,95856.0,0.052153]
[1733192421123,0.0026,95864.0,95856.0,0.3608]
[1733192421322,0.0946,95874.0,95863.0,0.052149]
[1733192421521,0.10461562,95873.0,95857.0,0.49624]
[1733192421727,0.3608,95865.0,95854.0,0.0026]
[1733192421922,0.052156,95851.0,95849.0,0.0026]
[1733192422131,0.052156,95851.0,95847.0,0.3608]
[1733192422721,0.0026,95861.0,95847.0,0.412958]
[1733192422722,0.052152,95858.0,95847.0,0.412958]
[1733192422926,0.052152,95858.0,95857.0,0.001]
[1733192423123,0.003,95873.0,95857.0,0.3618]
[1733192423124,0.15625814,95860.0,95857.0,0.3618]
[1733192423325,0.0026,95870.0,95857.0,0.3618]
[1733192423534,0.15625814,95872.0,95865.0,0.3608]
[1733192423733,0.005,95873.0,95865.0,0.3608]
[1733192423929,0.052145,95872.0,95865.0,0.3608]
[1733192424131,0.15691576,95872.0,95869.0,0.052146]
[1733192424934,0.156891,95873.0,95869.0,0.052146]
[1733192425139,0.156891,95873.0,95865.0,0.3608]
[1733192425140,0.3608,95876.0,95872.0,0.052144]
[1733192425937,0.3608,95876.0,95875.0,0.052143]
[1733192426334,0.3634,95887.0,95881.0,0.052139]
[1733192426535,0.3608,95887.0,95883.0,0.052138]
[1733192426736,0.15670727,95885.0,95884.0,0.3608]
[1733192426925,0.15670727,95886.0,95884.0,0.412937]
[1733192427242,0.15670727,95890.0,95888.0,0.052136]
[1733192427429,0.052131,95897.0,95888.0,0.052136]
[1733192427950,0.0356,95903.0,95891.0,0.052134]
[1733192428129,0.0026,95903.0,95885.0,0.0307]
[1733192428330,0.0026,95903.0,95895.0,0.3608]
[1733192428528,0.0304,95904.0,95895.0,0.3608]
[1733192428838,0.052129,95900.0,95895.0,0.3608]
[1733192429539,0.0304,95904.0,95895.0,0.3608]
[1733192429540,0.002,95896.0,95895.0,0.3608]
[1733192429739,0.0323,95896.0,95888.0,0.001]
[1733192430235,0.0303,95896.0,95885.0,0.001]
[1733192431042,0.1671,95896.0,95895.0,0.001]
[1733192431340,0.1671,95896.0,95884.0,0.3608]
[1733192431535,0.1671,95896.0,95885.0,0.001]
[1733192434040,0.052136,95886.0,95885.0,0.001]
[1733192434946,0.0316,95887.0,95885.0,0.001]
[1733192435644,0.002,95886.0,95885.0,0.001]
[1733192435837,0.002,95886.0,95885.0,0.3618]
[1733192436237,0.002,95886.0,95885.0,0.3922]
[1733192436947,0.002,95887.0,95886.0,0.052136]
[1733192438641,0.002,95886.0,95885.0,0.39176]
[1733192438842,0.002,95886.0,95885.0,0.3912]
[1733192439352,0.0026,95897.0,95890.0,0.052134]
[1733192439647,0.052129,95901.0,95891.0,0.052133]
[1733192440245,0.052131,95897.0,95885.0,0.39176]
[1733192440552,0.052131,95897.0,95880.0,0.10461562]
[1733192440553,0.052136,95888.0,95876.0,0.065842]
[1733192440842,0.052136,95888.0,95876.0,0.052142]
[1733192441045,0.0959,95887.0,95877.0,0.052141]
[1733192441246,0.0959,95887.0,95875.0,0.36236416]
[1733192441749,0.0959,95887.0,95880.0,0.052139]
[1733192442541,0.0969,95887.0,95880.0,0.052139]
[1733192443846,0.0969,95887.0,95875.0,0.36236416]
[1733192444948,0.0979,95887.0,95875.0,0.36236416]
[1733192445450,0.0979,95887.0,95879.0,0.05214]
[1733192445747,0.0969,95887.0,95879.0,0.05214]
[1733192447055,0.0969,95887.0,95882.0,0.052138]
[1733192447940,0.0979,95887.0,95882.0,0.052138]
[1733192448646,0.0979,95887.0,95875.0,0.36236416]
[1733192448647,0.0959,95887.0,95884.0,0.052138]
[1733192448844,0.0979,95887.0,95885.0,0.052137]
[1733192449945,0.002,95887.0,95885.0,0.052137]
[1733192450152,0.002,95887.0,95886.0,0.3608]
[1733192451248,0.0026,95893.0,95892.0,0.052133]
[1733192451442,0.0026,95893.0,95886.0,0.3927]
[1733192451443,0.14096,95901.0,95894.0,0.052132]
[1733192451654,0.13836,95901.0,95887.0,0.052136]
[1733192451846,0.15601352,95900.0,95887.0,0.052136]
[1733192452046,0.052133,95894.0,95888.0,0.052135]
[1733192452455,0.052133,95894.0,95886.0,0.3933]
[1733192452456,0.190488,95901.0,95886.0,0.3933]
[1733192452653,0.05213,95899.0,95890.0,0.052134]
[1733192453046,0.15712926,95898.0,95890.0,0.052134]
[1733192453755,0.15712926,95898.0,95891.0,0.052133]
[1733192454158,0.15712926,95898.0,95892.0,0.001]
[1733192454358,0.002,95894.0,95892.0,0.053133]
[1733192454858,0.002,95894.0,95892.0,0.052133]
[1733192455059,0.002,95898.0,95896.0,0.052131]
[1733192455444,0.15738987,95897.0,95896.0,0.052131]
[1733192457156,0.49912,95903.0,95901.0,0.052128]
[1733192457459,0.1559042,95902.0,95901.0,0.052128]
[1733192458562,0.1559042,95902.0,95901.0,0.053128]
[1733192459059,0.1579042,95902.0,95901.0,0.053128]
[1733192459957,0.1579042,95902.0,95901.0,0.001]
[1733192463068,0.1579042,95902.0,95887.0,0.0131]
[1733192463255,0.052133,95892.0,95886.0,0.3608]
[1733192463452,0.3608,95894.0,95886.0,0.3608]
[1733192463453,0.083334,95891.0,95886.0,0.3608]
[1733192464255,0.083334,95891.0,95887.0,0.052135]
[1733192464557,0.0312,95891.0,95887.0,0.052135]
[1733192464850,0.0312,95891.0,95889.0,0.052135]
[1733192465050,0.0026,95900.0,95898.0,0.05213]
[1733192465051,0.14092,95900.0,95898.0,0.05213]
[1733192465264,0.13832,95900.0,95898.0,0.05213]
[1733192465450,0.15601714,95899.0,95898.0,0.05213]
[1733192466962,0.15583146,95902.0,95898.0,0.05213]
[1733192467162,0.13832,95903.0,95898.0,0.05213]
[1733192467360,0.002,95900.0,95898.0,0.05313]
[1733192467664,0.15783146,95899.0,95898.0,0.05313]
[1733192467858,0.15783146,95899.0,95898.0,0.05213]
[1733192468167,0.15983146,95899.0,95898.0,0.05313]
[1733192468369,0.15783146,95899.0,95898.0,0.05313]
[1733192469066,0.15583146,95899.0,95898.0,0.05313]
[1733192469365,0.002,95900.0,95898.0,0.001]
[1733192469366,0.054129,95900.0,95898.0,0.001]
[1733192469755,0.15655614,95899.0,95898.0,0.001]
[1733192470367,0.15855614,95899.0,95898.0,0.001]
[1733192470561,0.052134,95891.0,95886.0,0.3608]
[1733192470759,0.0654,95890.0,95884.0,0.052137]
[1733192471069,0.22147336,95890.0,95888.0,0.052135]
[1733192471369,0.15607336,95890.0,95888.0,0.052135]
[1733192472260,0.15707336,95890.0,95888.0,0.052135]
[1733192473778,0.15907336,95890.0,95888.0,0.052135]
[1733192476686,0.15907336,95890.0,95889.0,0.052134]
[1733192477885,0.15807336,95890.0,95889.0,0.052134]
[1733192478087,0.15907336,95890.0,95889.0,0.052134]
[1733192487796,0.15907336,95890.0,95878.0,0.00416438]
[1733192487797,0.052135,95888.0,95887.0,0.052135]
[1733192487988,0.052135,95888.0,95880.0,0.06857891]
[1733192488194,0.052135,95888.0,95884.0,0.052137]
[1733192488388,0.0301,95889.0,95880.0,0.06857891]
[1733192488592,0.0301,95889.0,95884.0,0.052137]
[1733192488798,0.15721378,95888.0,95885.0,0.052136]
[1733192488999,0.15721378,95888.0,95880.0,0.06857891]
[1733192489393,0.15921378,95888.0,95885.0,0.052136]
[1733192490492,0.052137,95884.0,95880.0,0.12071791]
[1733192490693,0.052137,95884.0,95880.0,0.06857891]
[1733192490994,0.0328,95887.0,95883.0,0.052137]
[1733192491798,0.001,95884.0,95883.0,0.052137]
[1733192493095,0.002,95884.0,95883.0,0.052137]
[1733192494003,0.001,95884.0,95883.0,0.052137]
[1733192494600,0.002,95884.0,95883.0,0.052137]
[1733192495706,0.05214,95879.0,95878.0,0.00156438]
[1733192501005,0.01964063,95884.0,95878.0,0.00156438]
[1733192501006,0.07177763,95884.0,95878.0,0.00156438]
[1733192501304,0.15633059,95883.0,95878.0,0.00156438]
[1733192501503,0.15633059,95883.0,95882.0,0.052138]
[1733192501890,0.20863848,95885.0,95882.0,0.052138]
[1733192502094,0.15650148,95884.0,95882.0,0.052138]
[1733192502499,0.052137,95885.0,95878.0,0.00156438]
[1733192502702,0.15650148,95884.0,95878.0,0.00156438]
[1733192502908,0.20863848,95884.0,95878.0,0.00156438]
[1733192503097,0.052137,95884.0,95878.0,0.00156438]
[1733192503300,0.15717427,95883.0,95878.0,0.00156438]
[1733192505601,0.15717427,95883.0,95881.0,0.052138]
[1733192506211,0.15556118,95885.0,95878.0,0.00156438]
[1733192506398,0.052138,95883.0,95879.0,0.052139]
[1733192506721,0.15556118,95882.0,95879.0,0.052139]
[1733192507099,0.15556118,95882.0,95878.0,0.00156438]
[1733192508109,0.15629138,95883.0,95881.0,0.3608]
[1733192508409,0.0026,95889.0,95881.0,0.3608]
[1733192508410,0.0026,95889.0,95888.0,0.052135]
[1733192508708,0.13792001,95896.0,95894.0,0.052131]
[1733192508904,0.13476,95896.0,95894.0,0.052131]
[1733192509103,0.05213,95897.0,95894.0,0.052131]
[1733192509104,0.15646348,95895.0,95894.0,0.052131]
[1733192509407,0.15646348,95896.0,95894.0,0.052131]
[1733192509802,0.002,95896.0,95894.0,0.052131]
[1733192510004,0.15745794,95896.0,95894.0,0.052131]
[1733192510503,0.15745794,95896.0,95892.0,0.3608]
[1733192510804,0.15745794,95896.0,95890.0,0.052133]
[1733192510805,0.052132,95894.0,95890.0,0.052133]
[1733192511106,0.15691279,95893.0,95891.0,0.052133]
[1733192511301,0.15691279,95893.0,95892.0,0.052133]
[1733192512002,0.15670359,95895.0,95893.0,0.052132]
[1733192512208,0.15670359,95895.0,95894.0,0.052131]
[1733192512504,0.003,95896.0,95895.0,0.052131]
[1733192512707,0.001,95896.0,95895.0,0.052131]
[1733192512902,0.15770359,95896.0,95895.0,0.052131]
[1733192513301,0.15670359,95896.0,95895.0,0.052131]
[1733192513501,0.15870359,95896.0,95895.0,0.052131]
[1733192513706,0.002,95896.0,95895.0,0.052131]
[1733192514008,0.15746158,95896.0,95895.0,0.052131]
[1733192514230,0.003,95896.0,95895.0,0.053131]
[1733192520912,0.05513,95896.0,95895.0,0.001]
[1733192521110,0.21091762,95896.0,95895.0,0.001]
[1733192522218,0.15878762,95896.0,95895.0,0.001]
[1733192522419,0.15878762,95896.0,95895.0,0.053131]
[1733192527419,0.15878762,95896.0,95895.0,0.001]
[1733192527812,0.22058762,95896.0,95895.0,0.001]
[1733192529117,0.23976812,95896.0,95895.0,0.001]
[1733192533423,0.29189912,95896.0,95895.0,0.001]
[1733192534915,0.29189912,95896.0,95875.0,0.00156438]
[1733192534916,0.052136,95887.0,95875.0,0.05370638]
[1733192535226,0.052141,95877.0,95875.0,0.00156438]
[1733192537620,0.052141,95877.0,95875.0,0.00256438]
[1733192538220,0.052141,95877.0,95875.0,0.00456438]
[1733192538620,0.0625,95876.0,95875.0,0.00456438]
[1733192543921,0.0645,95876.0,95875.0,0.00456438]
[1733192544116,0.004,95876.0,95875.0,0.00356438]
[1733192544521,0.002,95876.0,95875.0,0.00256438]
[1733192544729,0.002,95876.0,95875.0,0.00356438]
[1733192544730,0.004,95876.0,95875.0,0.00356438]
[1733192546623,0.004,95876.0,95875.0,0.05570638]
[1733192547121,0.004,95876.0,95875.0,0.00356438]
[1733192547722,0.004,95876.0,95875.0,0.05570638]
[1733192549022,0.004,95876.0,95875.0,0.00356438]
[1733192549522,0.21347582,95876.0,95875.0,0.00356438]
[1733192550824,0.23325915,95876.0,95875.0,0.00356438]
[1733192555235,0.23325915,95876.0,95875.0,0.002]
[1733192555720,0.23325915,95876.0,95857.0,0.094252]
[1733192555921,0.3608,95868.0,95862.0,0.052149]
[1733192556228,0.1570024,95867.0,95862.0,0.052149]
[1733192557227,0.2091494,95867.0,95856.0,0.3608]
[1733192557534,0.3424694,95867.0,95859.0,0.05215]
[1733192558326,0.3454694,95867.0,95859.0,0.05215]
[1733192558531,0.3484694,95867.0,95859.0,0.05215]
[1733192559127,0.3484694,95867.0,95861.0,0.052149]
[1733192559441,0.1630024,95867.0,95865.0,0.052147]
[1733192560525,0.1600024,95867.0,95865.0,0.052147]
[1733192560825,0.1630024,95867.0,95865.0,0.052147]
[1733192561030,0.1630024,95867.0,95858.0,0.0306]
[1733192561231,0.1630024,95867.0,95865.0,0.001]
[1733192565035,0.2151484,95867.0,95865.0,0.001]
[1733192568538,0.052147,95866.0,95865.0,0.001]
[1733192568942,0.20918988,95866.0,95865.0,0.001]
[1733192569735,0.23176096,95866.0,95865.0,0.001]
[1733192570133,0.23176096,95866.0,95860.0,0.05215]
[1733192570336,0.23476096,95866.0,95865.0,0.001]
[1733192571332,0.052148,95865.0,95857.0,0.052152]
[1733192571637,0.052149,95862.0,95857.0,0.052152]
[1733192572836,0.02557108,95866.0,95856.0,0.3608]
[1733192573037,0.052151,95860.0,95856.0,0.3608]
[1733192573627,0.052151,95860.0,95856.0,0.412952]
[1733192574025,0.002,95862.0,95857.0,0.052151]
[1733192574632,0.052148,95865.0,95859.0,0.052151]
[1733192574833,0.02457108,95866.0,95863.0,0.052148]
[1733192575033,0.15747581,95864.0,95863.0,0.052148]
[1733192575337,0.15607161,95865.0,95863.0,0.052148]
[1733192575539,0.01957108,95866.0,95863.0,0.052148]
[1733192575724,0.052147,95867.0,95863.0,0.052148]
[1733192575930,0.15607161,95865.0,95863.0,0.052148]
[1733192576129,0.003,95864.0,95863.0,0.052148]
[1733192577340,0.006,95864.0,95863.0,0.053148]
[1733192577539,0.003,95864.0,95863.0,0.053148]
[1733192578432,0.006,95864.0,95863.0,0.053148]
[1733192581134,0.058148,95864.0,95863.0,0.001]
[1733192582939,0.006,95864.0,95863.0,0.001]
[1733192585543,0.058148,95864.0,95863.0,0.001]
[1733192588940,0.006,95864.0,95863.0,0.001]
[1733192589442,0.058148,95864.0,95863.0,0.001]
[1733192591639,0.21448648,95864.0,95863.0,0.001]
[1733192592446,0.21448648,95864.0,95838.0,0.00156507]
[1733192592447,0.052157,95848.0,95843.0,0.0105]
[1733192592642,0.052161,95840.0,95838.0,0.00156507]
[1733192592840,0.3608,95839.0,95838.0,0.00156507]
[1733192593045,0.51702401,95839.0,95838.0,0.00156507]
[1733192593944,0.51702401,95839.0,95838.0,0.00556507]
[1733192594643,0.53674237,95839.0,95838.0,0.00556507]
[1733192595043,0.53674237,95839.0,95838.0,0.00156507]
[1733192598745,0.53674237,95839.0,95837.0,0.052163]
[1733192598746,0.36136001,95848.0,95846.0,0.052158]
[1733192598949,0.01952604,95851.0,95839.0,0.3608]
[1733192599145,0.1555302,95846.0,95845.0,0.052158]
[1733192599449,0.0026,95855.0,95847.0,0.052157]
[1733192599450,0.15608252,95848.0,95847.0,0.052157]